[Event "Late-Titled-Tuesday-Blitz-May-14-2024"]
[Site "Chess.com"]
[Date "2024.05.14"]
[Round "2"]
[White "Casablanca"]
[Black "ChristopherYoo"]
[Result "0-1"]
[WhiteElo "2653"]
[BlackElo "3003"]
[TimeControl "180+1"]
[EndTime "14:18:27 PDT"]
[Termination "ChristopherYoo won by resignation"]

1. d4 {[%clk 0:03:00.9]} 1... Nf6 {[%clk 0:02:57.2]} 2. Bg5 {[%clk 0:03:01.2]}
2... Ne4 {[%clk 0:02:47.5]} 3. Bf4 {[%clk 0:03:00.8]} 3... c5 {[%clk 0:02:46.5]}
4. f3 {[%clk 0:03:01.2]} 4... Nf6 {[%clk 0:02:45]} 5. dxc5 {[%clk 0:03:01.6]}
5... e6 {[%clk 0:02:43.2]} 6. Bd6 {[%clk 0:03:00.4]} 6... Bxd6 {[%clk
0:02:42.9]} 7. cxd6 {[%clk 0:02:55.5]} 7... Qb6 {[%clk 0:02:41.3]} 8. b3 {[%clk
0:02:46.4]} 8... Nc6 {[%clk 0:02:35.1]} 9. e4 {[%clk 0:02:46.4]} 9... O-O {[%clk
0:02:02.9]} 10. Nd2 {[%clk 0:02:31.7]} 10... Ne5 {[%clk 0:01:48.7]} 11. Nc4
{[%clk 0:02:28.7]} 11... Nxc4 {[%clk 0:01:47.8]} 12. Bxc4 {[%clk 0:02:29.4]}
12... Ne8 {[%clk 0:01:47.8]} 13. Ne2 {[%clk 0:02:28.9]} 13... Nxd6 {[%clk
0:01:47.4]} 14. Bd3 {[%clk 0:02:07.7]} 14... f5 {[%clk 0:01:27.9]} 15. exf5
{[%clk 0:02:02.8]} 15... Nxf5 {[%clk 0:01:27.3]} 16. Bxf5 {[%clk 0:02:03.5]}
16... Rxf5 {[%clk 0:01:27.7]} 17. Qd4 {[%clk 0:02:03.4]} 17... Qc7 {[%clk
0:01:25.9]} 18. c4 {[%clk 0:02:03.2]} 18... d5 {[%clk 0:01:13.3]} 19. Rc1 {[%clk
0:01:53.3]} 19... Qa5+ {[%clk 0:01:08.4]} 20. Qd2 {[%clk 0:01:53.5]} 20... Qxd2+
{[%clk 0:00:56.8]} 21. Kxd2 {[%clk 0:01:53.6]} 21... b6 {[%clk 0:00:57.4]} 22.
cxd5 {[%clk 0:01:52.9]} 22... Rxd5+ {[%clk 0:00:57]} 23. Ke3 {[%clk 0:01:53.1]}
23... Ba6 {[%clk 0:00:56.2]} 24. Nf4 {[%clk 0:01:32]} 24... Re5+ {[%clk
0:00:53.3]} 25. Kd4 {[%clk 0:01:32.3]} 25... Ra5 {[%clk 0:00:52.8]} 26. Nxe6
{[%clk 0:01:28.6]} 26... Rxa2 {[%clk 0:00:48.8]} 27. Ra1 {[%clk 0:01:19.1]}
27... Rxa1 {[%clk 0:00:43.9]} 28. Rxa1 {[%clk 0:01:20]} 28... Bb7 {[%clk
0:00:43.5]} 29. Ke5 {[%clk 0:01:15.8]} 29... a5 {[%clk 0:00:42.2]} 30. Rc1
{[%clk 0:01:12.5]} 30... Re8 {[%clk 0:00:32.6]} 31. Kd6 {[%clk 0:01:11.9]} 31...
Bc8 {[%clk 0:00:32.7]} 32. Ng5 {[%clk 0:00:53.5]} 32... Bf5 {[%clk 0:00:30.9]}
33. g4 {[%clk 0:00:44.2]} 33... Bg6 {[%clk 0:00:30.8]} 34. f4 {[%clk 0:00:40.4]}
34... h6 {[%clk 0:00:30.8]} 35. Ne6 {[%clk 0:00:40.7]} 35... Bf7 {[%clk
0:00:29.4]} 36. f5 {[%clk 0:00:41.2]} 36... b5 {[%clk 0:00:29.6]} 37. Ra1 {[%clk
0:00:40.8]} 37... Ra8 {[%clk 0:00:27.4]} 38. Nc7 {[%clk 0:00:41.4]} 38... Rd8+
{[%clk 0:00:26.1]} 39. Ke7 {[%clk 0:00:41.1]} 39... Rd2 {[%clk 0:00:24]} 40.
Rxa5 {[%clk 0:00:35.7]} 40... Bxb3 {[%clk 0:00:23.7]} 41. Rxb5 {[%clk
0:00:35.2]} 41... Re2+ {[%clk 0:00:22.1]} 42. Ne6 {[%clk 0:00:35.1]} 42... Bc4
{[%clk 0:00:22.1]} 43. Rb8+ {[%clk 0:00:34.2]} 43... Kh7 {[%clk 0:00:22.4]} 44.
Kf7 {[%clk 0:00:30.2]} 44... Re4 {[%clk 0:00:19.5]} 45. h3 {[%clk 0:00:30.1]}
45... Re3 {[%clk 0:00:19.2]} 46. Rg8 {[%clk 0:00:30.1]} 46... Bxe6+ {[%clk
0:00:18.9]} 47. fxe6 {[%clk 0:00:30.2]} 47... Rf3+ {[%clk 0:00:19.5]} 48. Ke8
{[%clk 0:00:25.4]} 48... Kxg8 {[%clk 0:00:19.3]} 49. e7 {[%clk 0:00:26.3]} 49...
Re3 {[%clk 0:00:19.5]} 50. h4 {[%clk 0:00:26.4]} 50... g5 {[%clk 0:00:19.8]} 51.
h5 {[%clk 0:00:21.6]} 51... Kg7 {[%clk 0:00:19.9]} 52. Kd8 {[%clk 0:00:21.5]}
52... Kf7 {[%clk 0:00:20.4]} 53. Kc8 {[%clk 0:00:19.5]} 53... Rxe7 {[%clk
0:00:19.9]} 0-1

[Event "Late-Titled-Tuesday-Blitz-May-14-2024"]
[Site "Chess.com"]
[Date "2024.05.14"]
[Round "2"]
[White "kylelancman"]
[Black "Nor1lsk"]
[Result "0-1"]
[WhiteElo "2552"]
[BlackElo "2788"]
[TimeControl "180+1"]
[EndTime "14:18:27 PDT"]
[Termination "Nor1lsk won on time"]

1. e4 {[%clk 0:03:00.9]} 1... c5 {[%clk 0:02:59.3]} 2. Nf3 {[%clk 0:03:01]} 2...
e6 {[%clk 0:02:59.2]} 3. c3 {[%clk 0:03:00.5]} 3... Nf6 {[%clk 0:02:58.8]} 4. e5
{[%clk 0:03:00.6]} 4... Nd5 {[%clk 0:02:58.9]} 5. d4 {[%clk 0:03:01.2]} 5...
cxd4 {[%clk 0:02:59.3]} 6. cxd4 {[%clk 0:03:02.1]} 6... b6 {[%clk 0:02:59.4]} 7.
Bd2 {[%clk 0:03:01.8]} 7... Ba6 {[%clk 0:02:58.7]} 8. h4 {[%clk 0:03:01.9]} 8...
Bxf1 {[%clk 0:02:56.5]} 9. Kxf1 {[%clk 0:03:02.8]} 9... Nc6 {[%clk 0:02:54.8]}
10. h5 {[%clk 0:03:02.6]} 10... h6 {[%clk 0:02:54.8]} 11. Rh3 {[%clk 0:03:01.7]}
11... d6 {[%clk 0:02:54.3]} 12. Nc3 {[%clk 0:02:51.5]} 12... dxe5 {[%clk
0:02:51.9]} 13. dxe5 {[%clk 0:02:50.3]} 13... Nxc3 {[%clk 0:02:46.9]} 14. Bxc3
{[%clk 0:02:50]} 14... Qxd1+ {[%clk 0:02:46.3]} 15. Rxd1 {[%clk 0:02:50.9]}
15... Rd8 {[%clk 0:02:45.8]} 16. Rxd8+ {[%clk 0:02:50.1]} 16... Kxd8 {[%clk
0:02:45.8]} 17. Nd4 {[%clk 0:02:49]} 17... Ne7 {[%clk 0:02:23.1]} 18. Nb5 {[%clk
0:02:43.2]} 18... Nc6 {[%clk 0:02:09]} 19. Rd3+ {[%clk 0:02:41.5]} 19... Kc8
{[%clk 0:02:08.3]} 20. f4 {[%clk 0:02:25.3]} 20... Bc5 {[%clk 0:02:00.2]} 21.
Ke2 {[%clk 0:01:27.8]} 21... a6 {[%clk 0:01:54.5]} 22. Nd6+ {[%clk 0:01:24.7]}
22... Bxd6 {[%clk 0:01:53.9]} 23. Rxd6 {[%clk 0:01:13.8]} 23... Kc7 {[%clk
0:01:52.8]} 24. Kf3 {[%clk 0:01:10]} 24... Ne7 {[%clk 0:01:33.6]} 25. g4 {[%clk
0:00:55.9]} 25... Rg8 {[%clk 0:01:15.3]} 26. Bd4 {[%clk 0:00:54.2]} 26... Nc8
{[%clk 0:01:13.9]} 27. Ke4 {[%clk 0:00:29.5]} 27... Nxd6+ {[%clk 0:01:07]} 28.
exd6+ {[%clk 0:00:29.4]} 28... Kc6 {[%clk 0:01:04.4]} 29. g5 {[%clk 0:00:22.1]}
29... b5 {[%clk 0:00:57]} 30. Be5 {[%clk 0:00:20.3]} 30... f6 {[%clk 0:00:49.5]}
31. gxf6 {[%clk 0:00:14.9]} 31... gxf6 {[%clk 0:00:49.2]} 32. Bxf6 {[%clk
0:00:15.1]} 32... Kxd6 {[%clk 0:00:49.4]} 33. Be5+ {[%clk 0:00:14.5]} 33... Kd7
{[%clk 0:00:49.4]} 34. Kd4 {[%clk 0:00:13.3]} 34... Rg4 {[%clk 0:00:28.1]} 35.
Kc5 {[%clk 0:00:13.3]} 35... Rh4 {[%clk 0:00:28.1]} 36. Kb6 {[%clk 0:00:13.3]}
36... Rxh5 {[%clk 0:00:28.3]} 37. Kxa6 {[%clk 0:00:12.9]} 37... Kc6 {[%clk
0:00:28.4]} 38. Bb8 {[%clk 0:00:08.4]} 38... Rh2 {[%clk 0:00:20.6]} 39. f5
{[%clk 0:00:07.2]} 39... Rxb2 {[%clk 0:00:20.7]} 40. a4 {[%clk 0:00:03.4]} 40...
bxa4 {[%clk 0:00:20]} 41. fxe6 {[%clk 0:00:01.8]} 41... Rxb8 {[%clk 0:00:20.1]}
0-1

[Event "Late-Titled-Tuesday-Blitz-May-14-2024"]
[Site "Chess.com"]
[Date "2024.05.14"]
[Round "2"]
[White "JM05C"]
[Black "besarquis"]
[Result "0-1"]
[WhiteElo "2507"]
[BlackElo "2321"]
[TimeControl "180+1"]
[EndTime "14:18:27 PDT"]
[Termination "besarquis won by resignation"]

1. e4 {[%clk 0:03:00.5]} 1... e5 {[%clk 0:02:54.6]} 2. Nf3 {[%clk 0:03:00.5]}
2... Nc6 {[%clk 0:02:54.6]} 3. Bc4 {[%clk 0:03:00.5]} 3... Bc5 {[%clk 0:02:54]}
4. O-O {[%clk 0:03:00.4]} 4... Nf6 {[%clk 0:02:53.6]} 5. d3 {[%clk 0:02:59.9]}
5... d6 {[%clk 0:02:52.4]} 6. c3 {[%clk 0:02:59.9]} 6... a6 {[%clk 0:02:52.2]}
7. a4 {[%clk 0:02:59.7]} 7... Ba7 {[%clk 0:02:52.2]} 8. Nbd2 {[%clk 0:02:58.5]}
8... Ne7 {[%clk 0:02:48.8]} 9. Re1 {[%clk 0:02:36.1]} 9... Ng6 {[%clk
0:02:48.3]} 10. Nf1 {[%clk 0:02:35.8]} 10... O-O {[%clk 0:02:47.7]} 11. Ng3
{[%clk 0:02:34.9]} 11... c6 {[%clk 0:02:46.4]} 12. Bb3 {[%clk 0:02:29.9]} 12...
h6 {[%clk 0:02:44.5]} 13. h3 {[%clk 0:02:29.7]} 13... Re8 {[%clk 0:02:44.3]} 14.
Be3 {[%clk 0:02:20.2]} 14... d5 {[%clk 0:02:41.5]} 15. Bxa7 {[%clk 0:02:17]}
15... Rxa7 {[%clk 0:02:41.5]} 16. Qc2 {[%clk 0:02:11]} 16... Ra8 {[%clk
0:02:39.1]} 17. Rad1 {[%clk 0:02:10.2]} 17... Be6 {[%clk 0:02:25.1]} 18. exd5
{[%clk 0:01:43.9]} 18... Bxd5 {[%clk 0:02:23.8]} 19. Nd2 {[%clk 0:01:40.1]}
19... Nf4 {[%clk 0:02:12.1]} 20. Nde4 {[%clk 0:01:39.4]} 20... Nh7 {[%clk
0:01:56.6]} 21. d4 {[%clk 0:01:35.4]} 21... Qc7 {[%clk 0:01:32.4]} 22. c4 {[%clk
0:01:10.5]} 22... Bxe4 {[%clk 0:00:57.8]} 23. Rxe4 {[%clk 0:01:11.4]} 23... exd4
{[%clk 0:00:56]} 24. Rdxd4 {[%clk 0:01:09.4]} 24... Ne6 {[%clk 0:00:50]} 25. Rd1
{[%clk 0:01:05.6]} 25... Nc5 {[%clk 0:00:49.8]} 26. Red4 {[%clk 0:01:01.4]}
26... Red8 {[%clk 0:00:45.7]} 27. Ba2 {[%clk 0:00:59.7]} 27... Rxd4 {[%clk
0:00:44.8]} 28. Rxd4 {[%clk 0:01:00.6]} 28... Rd8 {[%clk 0:00:41.4]} 29. Bb1
{[%clk 0:00:39.7]} 29... Nf6 {[%clk 0:00:30.3]} 30. Rxd8+ {[%clk 0:00:36.8]}
30... Qxd8 {[%clk 0:00:30.4]} 31. b4 {[%clk 0:00:37.7]} 31... Ne6 {[%clk
0:00:28.7]} 32. Nf5 {[%clk 0:00:38.2]} 32... Nd4 {[%clk 0:00:28.7]} 33. Qd3
{[%clk 0:00:37]} 33... Ne6 {[%clk 0:00:25.6]} 34. Nd6 {[%clk 0:00:26.8]} 34...
Qb6 {[%clk 0:00:18.8]} 35. b5 {[%clk 0:00:09.3]} 35... cxb5 {[%clk 0:00:15.8]}
36. cxb5 {[%clk 0:00:09.8]} 36... Nc5 {[%clk 0:00:15.9]} 37. Qd4 {[%clk
0:00:09.3]} 37... Nxa4 {[%clk 0:00:11.9]} 38. Nxf7 {[%clk 0:00:07]} 38... Qxd4
{[%clk 0:00:11]} 0-1

[Event "Late-Titled-Tuesday-Blitz-May-14-2024"]
[Site "Chess.com"]
[Date "2024.05.14"]
[Round "2"]
[White "jbking07"]
[Black "AlexOstrovskiy"]
[Result "1-0"]
[WhiteElo "2398"]
[BlackElo "2717"]
[TimeControl "180+1"]
[EndTime "14:18:29 PDT"]
[Termination "jbking07 won by resignation"]

1. Nf3 {[%clk 0:03:00.9]} 1... Nf6 {[%clk 0:02:58.4]} 2. g3 {[%clk 0:03:00.9]}
2... b5 {[%clk 0:02:58.5]} 3. Bg2 {[%clk 0:03:01.1]} 3... Bb7 {[%clk 0:02:59.2]}
4. O-O {[%clk 0:03:01]} 4... c5 {[%clk 0:02:59.8]} 5. d3 {[%clk 0:02:59]} 5...
e6 {[%clk 0:02:56.3]} 6. c4 {[%clk 0:02:57.3]} 6... bxc4 {[%clk 0:02:52]} 7.
dxc4 {[%clk 0:02:58.2]} 7... Be7 {[%clk 0:02:52]} 8. Nc3 {[%clk 0:02:57.8]} 8...
O-O {[%clk 0:02:51]} 9. Bf4 {[%clk 0:02:36.7]} 9... d5 {[%clk 0:02:49.4]} 10.
cxd5 {[%clk 0:02:35.6]} 10... exd5 {[%clk 0:02:49]} 11. Nb5 {[%clk 0:02:21.1]}
11... Na6 {[%clk 0:02:45.1]} 12. Rc1 {[%clk 0:02:02.8]} 12... Qb6 {[%clk
0:02:44.4]} 13. a4 {[%clk 0:02:02.5]} 13... d4 {[%clk 0:02:40]} 14. Ne5 {[%clk
0:02:01]} 14... Bxg2 {[%clk 0:02:31.1]} 15. Kxg2 {[%clk 0:02:01.9]} 15... Nd5
{[%clk 0:02:31.5]} 16. Qd2 {[%clk 0:01:59]} 16... Rac8 {[%clk 0:02:11]} 17. Nc4
{[%clk 0:01:52.8]} 17... Qb7 {[%clk 0:02:10.7]} 18. Kg1 {[%clk 0:01:53.2]} 18...
Qd7 {[%clk 0:01:54.4]} 19. e4 {[%clk 0:01:30.9]} 19... Nxf4 {[%clk 0:01:49.4]}
20. Qxf4 {[%clk 0:01:31.8]} 20... Nb4 {[%clk 0:01:49.5]} 21. Rfd1 {[%clk
0:01:29.5]} 21... a6 {[%clk 0:01:46.8]} 22. Nbd6 {[%clk 0:01:27.2]} 22... Rc6
{[%clk 0:01:46.5]} 23. Nf5 {[%clk 0:01:22.2]} 23... Re6 {[%clk 0:01:28.2]} 24.
Ne5 {[%clk 0:01:06.7]} 24... Qc7 {[%clk 0:01:18.9]} 25. Nd3 {[%clk 0:01:02.2]}
25... Qxf4 {[%clk 0:00:47.3]} 26. Nxf4 {[%clk 0:01:03.1]} 26... Rxe4 {[%clk
0:00:47.9]} 27. Nxe7+ {[%clk 0:01:03.7]} 27... Rxe7 {[%clk 0:00:48.8]} 28. Rxc5
{[%clk 0:01:03.3]} 28... d3 {[%clk 0:00:34.8]} 29. Nxd3 {[%clk 0:00:36.2]} 29...
Rd7 {[%clk 0:00:23.6]} 30. Rc3 {[%clk 0:00:28.4]} 30... Rfd8 {[%clk 0:00:21.9]}
31. Nxb4 {[%clk 0:00:27.6]} 31... Rxd1+ {[%clk 0:00:22.8]} 32. Kg2 {[%clk
0:00:28]} 32... Rb1 {[%clk 0:00:18.8]} 33. Rc2 {[%clk 0:00:26.2]} 33... Ra1
{[%clk 0:00:10.9]} 34. b3 {[%clk 0:00:24.8]} 34... Rb1 {[%clk 0:00:10.1]} 35.
Rc3 {[%clk 0:00:24.1]} 35... a5 {[%clk 0:00:04.9]} 36. Nc6 {[%clk 0:00:23.9]}
36... Re8 {[%clk 0:00:04.5]} 37. Nxa5 {[%clk 0:00:23.4]} 37... h5 {[%clk
0:00:05.4]} 38. h4 {[%clk 0:00:23]} 38... g6 {[%clk 0:00:05.2]} 39. Nc4 {[%clk
0:00:20.5]} 39... Rb8 {[%clk 0:00:05.2]} 40. Nd2 {[%clk 0:00:19]} 40... Rb2
{[%clk 0:00:04.1]} 41. Rd3 {[%clk 0:00:19.4]} 41... Rc8 {[%clk 0:00:04.7]} 42.
Nc4 {[%clk 0:00:19.2]} 42... Rb1 {[%clk 0:00:04.5]} 43. a5 {[%clk 0:00:19.5]}
43... Rb8 {[%clk 0:00:04.8]} 44. a6 {[%clk 0:00:19.2]} 44... R8xb3 {[%clk
0:00:02.8]} 45. Rxb3 {[%clk 0:00:17.8]} 45... Rxb3 {[%clk 0:00:03.7]} 46. a7
{[%clk 0:00:17.9]} 1-0

[Event "Late-Titled-Tuesday-Blitz-May-14-2024"]
[Site "Chess.com"]
[Date "2024.05.14"]
[Round "2"]
[White "MKlose11"]
[Black "alexrustemov"]
[Result "0-1"]
[WhiteElo "2634"]
[BlackElo "2928"]
[TimeControl "180+1"]
[EndTime "14:18:32 PDT"]
[Termination "alexrustemov won by resignation"]

1. e4 {[%clk 0:03:00.9]} 1... e6 {[%clk 0:02:59.8]} 2. d4 {[%clk 0:02:55.2]}
2... d5 {[%clk 0:03:00.1]} 3. Nc3 {[%clk 0:02:55.8]} 3... dxe4 {[%clk
0:02:58.9]} 4. Nxe4 {[%clk 0:02:55.7]} 4... Bd7 {[%clk 0:02:59.8]} 5. Bd3 {[%clk
0:02:54]} 5... Bc6 {[%clk 0:02:59.1]} 6. Nf3 {[%clk 0:02:50]} 6... Nd7 {[%clk
0:02:57.5]} 7. O-O {[%clk 0:02:48]} 7... Ngf6 {[%clk 0:02:57.6]} 8. Qe2 {[%clk
0:02:48.4]} 8... Nxe4 {[%clk 0:02:56.7]} 9. Bxe4 {[%clk 0:02:48.3]} 9... Bxe4
{[%clk 0:02:57.3]} 10. Qxe4 {[%clk 0:02:49.2]} 10... c6 {[%clk 0:02:57.8]} 11.
Qe2 {[%clk 0:02:36.9]} 11... Bd6 {[%clk 0:02:46.4]} 12. c4 {[%clk 0:02:24.2]}
12... O-O {[%clk 0:02:45.7]} 13. b3 {[%clk 0:02:24.2]} 13... Re8 {[%clk
0:02:39.2]} 14. Bb2 {[%clk 0:02:24]} 14... Qc7 {[%clk 0:02:31.1]} 15. Rfe1
{[%clk 0:02:23.7]} 15... Rad8 {[%clk 0:02:25.2]} 16. Rad1 {[%clk 0:02:23.2]}
16... h6 {[%clk 0:02:18.8]} 17. h3 {[%clk 0:02:16.5]} 17... Nf8 {[%clk 0:02:18]}
18. Nd2 {[%clk 0:02:02.6]} 18... Ng6 {[%clk 0:02:16.2]} 19. Ne4 {[%clk 0:02:01]}
19... Bb4 {[%clk 0:02:11.2]} 20. Rf1 {[%clk 0:01:54.5]} 20... Be7 {[%clk
0:02:10.7]} 21. Rfe1 {[%clk 0:01:53]} 21... Nf4 {[%clk 0:02:03.1]} 22. Qf3
{[%clk 0:01:52.8]} 22... Rd7 {[%clk 0:01:57.2]} 23. a3 {[%clk 0:01:33.7]} 23...
Red8 {[%clk 0:01:55.5]} 24. Qg3 {[%clk 0:01:33.9]} 24... e5 {[%clk 0:01:48.8]}
25. Bc1 {[%clk 0:01:15.2]} 25... Rxd4 {[%clk 0:01:40.4]} 26. Rxd4 {[%clk
0:01:12.8]} 26... Rxd4 {[%clk 0:01:41.3]} 27. Bxf4 {[%clk 0:01:12.4]} 27... exf4
{[%clk 0:01:37.7]} 28. Qc3 {[%clk 0:01:10.5]} 28... Qd7 {[%clk 0:01:33]} 29. a4
{[%clk 0:01:07]} 29... Bf8 {[%clk 0:01:25.8]} 30. Qf3 {[%clk 0:00:41.8]} 30...
f5 {[%clk 0:01:20.4]} 31. Qxf4 {[%clk 0:00:20.2]} 31... Rxe4 {[%clk 0:01:18.5]}
32. Rxe4 {[%clk 0:00:21.1]} 32... fxe4 {[%clk 0:01:18.7]} 33. Qxe4 {[%clk
0:00:21.5]} 33... Bc5 {[%clk 0:01:09.1]} 34. g3 {[%clk 0:00:21.8]} 34... a5
{[%clk 0:00:59.1]} 35. Kg2 {[%clk 0:00:21.6]} 35... Qe7 {[%clk 0:00:53.3]} 36.
Qf5 {[%clk 0:00:20.8]} 36... Bb4 {[%clk 0:00:41.4]} 37. g4 {[%clk 0:00:17.5]}
37... Qf7 {[%clk 0:00:40.8]} 38. Qc8+ {[%clk 0:00:17.1]} 38... Kh7 {[%clk
0:00:40.6]} 39. Qd8 {[%clk 0:00:16]} 39... Bc5 {[%clk 0:00:37.9]} 40. Qd3+
{[%clk 0:00:16]} 40... Qg6 {[%clk 0:00:37.4]} 41. Qe2 {[%clk 0:00:14.4]} 41...
Qf6 {[%clk 0:00:35.2]} 42. Qe4+ {[%clk 0:00:14]} 42... g6 {[%clk 0:00:35.2]} 43.
f4 {[%clk 0:00:09]} 43... Qe7 {[%clk 0:00:32.1]} 44. Qd3 {[%clk 0:00:08]} 44...
Kg7 {[%clk 0:00:31.1]} 45. h4 {[%clk 0:00:07.9]} 45... Qd6 {[%clk 0:00:29.9]}
46. Qe4 {[%clk 0:00:07.4]} 46... Qd2+ {[%clk 0:00:29.8]} 47. Kh3 {[%clk
0:00:07.7]} 47... Qe3+ {[%clk 0:00:29.6]} 48. Qxe3 {[%clk 0:00:07.7]} 48... Bxe3
{[%clk 0:00:30.3]} 49. Kg3 {[%clk 0:00:08.6]} 49... h5 {[%clk 0:00:28.8]} 50. f5
{[%clk 0:00:07.3]} 50... gxf5 {[%clk 0:00:26.8]} 51. gxf5 {[%clk 0:00:07.6]}
51... Kf6 {[%clk 0:00:26.3]} 0-1

[Event "Late-Titled-Tuesday-Blitz-May-14-2024"]
[Site "Chess.com"]
[Date "2024.05.14"]
[Round "2"]
[White "WPWPWP-2015"]
[Black "MatthewG-p4p"]
[Result "0-1"]
[WhiteElo "2419"]
[BlackElo "2831"]
[TimeControl "180+1"]
[EndTime "14:18:32 PDT"]
[Termination "MatthewG-p4p won by resignation"]

1. e4 {[%clk 0:02:56]} 1... e6 {[%clk 0:02:55.7]} 2. d4 {[%clk 0:02:55.3]} 2...
d5 {[%clk 0:02:56.1]} 3. Nc3 {[%clk 0:02:53.7]} 3... Bb4 {[%clk 0:02:54.1]} 4.
a3 {[%clk 0:02:52.7]} 4... Bxc3+ {[%clk 0:02:54.2]} 5. bxc3 {[%clk 0:02:53.6]}
5... dxe4 {[%clk 0:02:55.1]} 6. Qg4 {[%clk 0:02:53.4]} 6... Nf6 {[%clk
0:02:55.7]} 7. Qxg7 {[%clk 0:02:53.5]} 7... Rg8 {[%clk 0:02:56.6]} 8. Qh6 {[%clk
0:02:53.8]} 8... c5 {[%clk 0:02:57.4]} 9. Ne2 {[%clk 0:02:53.1]} 9... Rg6 {[%clk
0:02:55.2]} 10. Qe3 {[%clk 0:02:52.4]} 10... Nbd7 {[%clk 0:02:52.2]} 11. h3
{[%clk 0:02:50.1]} 11... b6 {[%clk 0:02:46.4]} 12. Nf4 {[%clk 0:02:46.6]} 12...
Rg8 {[%clk 0:02:45.7]} 13. Bb5 {[%clk 0:02:45.4]} 13... Qc7 {[%clk 0:02:44.1]}
14. Bb2 {[%clk 0:02:37]} 14... a6 {[%clk 0:02:40.3]} 15. Be2 {[%clk 0:02:33]}
15... Bb7 {[%clk 0:02:38.7]} 16. O-O-O {[%clk 0:02:29.1]} 16... Rc8 {[%clk
0:02:33]} 17. Rd2 {[%clk 0:02:24]} 17... cxd4 {[%clk 0:02:33.1]} 18. cxd4 {[%clk
0:02:23.6]} 18... b5 {[%clk 0:02:33.7]} 19. Re1 {[%clk 0:01:41]} 19... Nb6
{[%clk 0:02:32.2]} 20. g4 {[%clk 0:01:40.4]} 20... Nfd5 {[%clk 0:02:22]} 21.
Nxd5 {[%clk 0:01:38.9]} 21... Bxd5 {[%clk 0:02:22.9]} 22. Qg3 {[%clk 0:01:29.2]}
22... Qxg3 {[%clk 0:02:07]} 23. fxg3 {[%clk 0:01:30.1]} 23... Ke7 {[%clk
0:01:56.3]} 24. Bf1 {[%clk 0:01:09]} 24... h5 {[%clk 0:01:37.8]} 25. Be2 {[%clk
0:00:48.8]} 25... hxg4 {[%clk 0:01:36.2]} 26. h4 {[%clk 0:00:45.7]} 26... f5
{[%clk 0:01:13.6]} 27. Bf1 {[%clk 0:00:44.9]} 27... Bc4 {[%clk 0:01:08.4]} 28.
Bg2 {[%clk 0:00:43.5]} 28... Nd5 {[%clk 0:01:08.4]} 29. Rdd1 {[%clk 0:00:38.6]}
29... a5 {[%clk 0:01:04.8]} 30. Kd2 {[%clk 0:00:37.5]} 30... Nf6 {[%clk
0:00:55.4]} 31. Ke3 {[%clk 0:00:34.8]} 31... Nh5 {[%clk 0:00:55.1]} 32. Kf2
{[%clk 0:00:34.5]} 32... Bd5 {[%clk 0:00:56]} 33. Rd2 {[%clk 0:00:31.1]} 33...
b4 {[%clk 0:00:55]} 34. axb4 {[%clk 0:00:30.3]} 34... axb4 {[%clk 0:00:55.9]}
35. Ra1 {[%clk 0:00:28.3]} 35... Rc7 {[%clk 0:00:42.8]} 36. Ra4 {[%clk
0:00:25.5]} 36... Rgc8 {[%clk 0:00:43.2]} 37. c3 {[%clk 0:00:02.3]} 37... bxc3
{[%clk 0:00:43.3]} 38. Ba3+ {[%clk 0:00:02.7]} 38... Kf7 {[%clk 0:00:44.2]} 39.
Rc2 {[%clk 0:00:03.2]} 39... Bb3 {[%clk 0:00:44.8]} 40. Ra5 {[%clk 0:00:02.4]}
40... Bxc2 {[%clk 0:00:45.2]} 41. d5 {[%clk 0:00:03]} 41... exd5 {[%clk
0:00:45.5]} 42. Rxd5 {[%clk 0:00:02.9]} 42... Kg7 {[%clk 0:00:42.6]} 43. Ke3
{[%clk 0:00:02.1]} 43... Nxg3 {[%clk 0:00:42.2]} 44. Kf4 {[%clk 0:00:02.4]}
44... Nh5+ {[%clk 0:00:39.7]} 45. Kxf5 {[%clk 0:00:02.7]} 45... Nf6 {[%clk
0:00:39.7]} 46. Rd6 {[%clk 0:00:02.6]} 46... e3+ {[%clk 0:00:40.1]} 47. Kf4
{[%clk 0:00:03]} 47... e2 {[%clk 0:00:39.4]} 48. Re6 {[%clk 0:00:03.5]} 48...
Bd3 {[%clk 0:00:38.2]} 49. Re3 {[%clk 0:00:03.5]} 49... c2 {[%clk 0:00:36]} 50.
Bc1 {[%clk 0:00:03.4]} 50... Re8 {[%clk 0:00:36]} 51. Rxe8 {[%clk 0:00:02.8]}
51... Nxe8 {[%clk 0:00:36.9]} 52. h5 {[%clk 0:00:02.8]} 52... e1=Q {[%clk
0:00:36.8]} 53. Bb2+ {[%clk 0:00:03.1]} 53... Kh7 {[%clk 0:00:36.4]} 0-1